bitfinex-derivatives/quotes_BTCF0:USTF0_20251204
["timestamp","ask_amount","ask_price","bid_price","bid_amount"]
[1764882284569,0.0558322,92479.0,92478.0,0.06021002]
[1764882284862,0.0001622,92479.0,92478.0,0.06021002]
[1764882285663,0.0001622,92479.0,92478.0,0.06121002]
[1764882286054,0.0558322,92479.0,92478.0,0.06121002]
[1764882287751,0.0558322,92479.0,92478.0,0.06221002]
[1764882288262,0.0558322,92479.0,92478.0,0.06021002]
[1764882288449,0.0558322,92479.0,92478.0,0.06121002]
[1764882288763,0.0001622,92479.0,92478.0,0.06121002]
[1764882290060,0.0287622,92479.0,92478.0,0.06121002]
[1764882290963,0.0558322,92479.0,92478.0,0.06221002]
[1764882292162,0.0558322,92479.0,92478.0,0.06121002]
[1764882292668,0.0558322,92479.0,92478.0,0.06021002]
[1764882293463,0.0664803,92478.0,92477.0,0.0108104]
[1764882294059,0.0664803,92478.0,92477.0,0.0406704]
[1764882294668,0.0674803,92478.0,92477.0,0.0406704]
[1764882294965,0.05767,92478.0,92477.0,0.0406704]
[1764882295171,0.05767,92478.0,92477.0,0.0692304]
[1764882295367,0.07281,92478.0,92477.0,0.0692304]
[1764882295564,0.07481,92478.0,92477.0,0.0692304]
[1764882297171,0.07381,92478.0,92477.0,0.0692304]
[1764882297367,0.05567,92478.0,92477.0,0.0692304]
[1764882297570,0.001,92478.0,92477.0,0.0692304]
[1764882298069,0.0001622,92479.0,92478.0,0.07206]
[1764882298367,0.08529703,92507.0,92506.0,0.066587]
[1764882298564,0.02718,92507.0,92506.0,0.066587]
[1764882298972,0.05604,92507.0,92506.0,0.066587]
[1764882300272,0.05604,92514.0,92513.0,0.0665862]
[1764882300473,0.07755308,92527.0,92513.0,0.0665862]
[1764882300474,0.0002702,92526.0,92525.0,0.0665848]
[1764882301775,0.0563102,92526.0,92525.0,0.0665848]
[1764882301973,0.05604,92517.0,92516.0,0.010968]
[1764882302470,0.05604,92517.0,92516.0,0.0001622]
[1764882303068,0.01714,92520.0,92498.0,0.0108079]
[1764882303069,0.01714,92504.0,92498.0,0.0108079]
[1764882303260,0.01714,92504.0,92488.0,0.039369]
[1764882303261,0.05604,92489.0,92488.0,0.0108091]
[1764882306673,0.05704,92489.0,92488.0,0.0108091]
[1764882306871,0.05804,92489.0,92488.0,0.0108091]
[1764882307271,0.05704,92489.0,92488.0,0.0108091]
[1764882307472,0.05604,92489.0,92488.0,0.0108091]
[1764882308572,0.05604,92489.0,92488.0,0.0380291]
[1764882308774,0.05604,92489.0,92479.0,0.0001622]
[1764882308775,0.07413,92480.0,92479.0,0.0586922]
[1764882309075,0.07413,92480.0,92479.0,0.07192242]
[1764882310270,0.07413,92480.0,92479.0,0.07292242]
[1764882311277,0.07413,92480.0,92479.0,0.07192242]
[1764882311472,0.0849401,92480.0,92479.0,0.0119724]
[1764882311772,0.0849401,92480.0,92479.0,0.0011622]
[1764882313274,0.0869401,92480.0,92479.0,0.0001622]
[1764882313875,0.07513,92480.0,92479.0,0.0001622]
[1764882314777,0.07513,92480.0,92479.0,0.00258222]
[1764882314972,0.07513,92480.0,92479.0,0.0001622]
[1764882315582,0.07513,92480.0,92479.0,0.0695024]
[1764882315881,0.07513,92480.0,92479.0,0.0396824]
[1764882316080,0.07413,92480.0,92479.0,0.0396824]
[1764882316277,0.07513,92480.0,92479.0,0.0695024]
[1764882316478,0.07613,92480.0,92479.0,0.0695024]
[1764882317075,0.07513,92480.0,92479.0,0.0695024]
[1764882318975,0.07413,92480.0,92479.0,0.0695024]
[1764882319783,0.05683,92480.0,92479.0,0.0695024]
[1764882320480,0.05683,92493.0,92492.0,0.0108086]
[1764882320677,0.05683,92493.0,92492.0,0.0693386]
[1764882322482,0.05783,92493.0,92492.0,0.0693386]
[1764882323984,0.05883,92493.0,92492.0,0.0693386]
[1764882325788,0.002,92493.0,92492.0,0.0693386]
[1764882326188,0.17545317,92502.0,92492.0,0.0693386]
[1764882326189,0.17545317,92502.0,92497.0,0.0693381]
[1764882326388,0.07541703,92519.0,92509.0,0.0693367]
[1764882326389,0.17545317,92510.0,92509.0,0.0693367]
[1764882326688,0.07413,92519.0,92518.0,0.0693356]
[1764882326892,0.05683,92519.0,92518.0,0.07175562]
[1764882328895,0.003,92519.0,92518.0,0.07175562]
[1764882329187,0.004,92519.0,92518.0,0.07175562]
[1764882329994,0.0002702,92526.0,92518.0,0.07175562]
[1764882329995,1e-07,92526.0,92525.0,0.0693348]
[1764882330197,0.27603756,92550.0,92549.0,0.069332]
[1764882330488,0.05683,92559.0,92558.0,0.0108009]
[1764882330691,0.05683,92559.0,92558.0,0.0693309]
[1764882332690,0.05683,92559.0,92558.0,0.0703309]
[1764882332994,0.05683,92559.0,92558.0,0.001]
[1764882333195,0.0108006,92561.0,92558.0,0.001]
[1764882333196,0.0001621,92568.0,92565.0,0.05853]
[1764882333384,0.0001621,92568.0,92565.0,0.06095002]
[1764882333986,0.05591008,92566.0,92565.0,0.06095002]
[1764882334390,0.02847008,92566.0,92565.0,0.06095002]
[1764882334794,0.05591008,92566.0,92565.0,0.00242002]
[1764882334993,0.05564,92564.0,92563.0,0.0108004]
[1764882335297,0.05564,92564.0,92541.0,0.0108029]
[1764882335298,0.07195,92560.0,92559.0,0.0404908]
[1764882335593,0.02847008,92566.0,92565.0,0.0713101]
[1764882335792,0.00027008,92566.0,92565.0,0.09028012]
[1764882335998,0.05632008,92566.0,92565.0,0.07373012]
[1764882336292,0.05632008,92566.0,92565.0,0.04291012]
[1764882336887,0.05632008,92566.0,92565.0,0.07172012]
[1764882337484,0.00027008,92566.0,92565.0,0.08924012]
[1764882337896,0.00027008,92566.0,92565.0,0.09124012]
[1764882338195,0.27530756,92590.0,92589.0,0.05854]
[1764882338501,0.0561,92590.0,92589.0,0.0693373]
[1764882338701,0.0561,92590.0,92589.0,0.0107973]
[1764882338897,0.0561,92586.0,92585.0,0.0107977]
[1764882341408,0.0561,92586.0,92585.0,0.0405277]
[1764882341898,0.0561,92586.0,92585.0,0.0107977]
[1764882342102,0.01631,92592.0,92576.0,0.0406908]
[1764882342103,0.0561,92577.0,92576.0,0.0406908]
[1764882342407,0.0561,92577.0,92576.0,0.0695008]
[1764882342595,0.0561,92577.0,92576.0,0.0406908]
[1764882343497,0.0561,92577.0,92576.0,0.0109608]
[1764882344506,0.0561,92577.0,92576.0,0.000162]
[1764882344699,0.0561,92577.0,92544.0,0.01058775]
[1764882344700,0.02825,92552.0,92551.0,0.02973]
[1764882344894,0.07336,92565.0,92564.0,0.0108002]
[1764882345403,0.07336,92565.0,92564.0,0.0693402]
[1764882345600,0.07336,92565.0,92564.0,0.0108002]
[1764882345898,0.07336,92556.0,92555.0,0.0109633]
[1764882346089,0.07336,92556.0,92555.0,0.000162]
[1764882347806,0.07336,92556.0,92555.0,0.004162]
[1764882348300,0.07336,92556.0,92555.0,0.000162]
[1764882352605,0.07336,92556.0,92535.0,0.0108036]
[1764882352606,0.07289,92536.0,92535.0,0.0108036]
[1764882353005,0.05543,92536.0,92535.0,0.0654336]
[1764882354403,0.05543,92536.0,92535.0,0.0694336]
[1764882355113,0.0284921,92545.0,92544.0,0.0654326]
[1764882355314,0.0284921,92545.0,92544.0,0.06785262]
[1764882355514,0.0555921,92545.0,92544.0,0.06785262]
[1764882356105,0.0001621,92545.0,92544.0,0.08486262]
[1764882356615,0.0284921,92545.0,92544.0,0.08486262]
[1764882356809,0.0284921,92545.0,92544.0,0.06785262]
[1764882357116,0.0284921,92545.0,92544.0,0.07085262]
[1764882357808,0.0555921,92545.0,92544.0,0.07085262]
[1764882358713,0.0001621,92545.0,92544.0,0.08786262]
[1764882360119,0.0001621,92545.0,92544.0,0.08886262]
[1764882360312,0.0284921,92545.0,92544.0,0.08886262]
[1764882360509,0.05811703,92572.0,92571.0,0.0654294]
[1764882360711,0.05543,92572.0,92571.0,0.0654294]
[1764882362013,0.05543,92572.0,92571.0,0.0378794]
[1764882362907,0.05543,92572.0,92571.0,0.0388794]
[1764882363115,0.05543,92572.0,92571.0,0.0664294]
[1764882363319,0.21936966,92581.0,92580.0,0.0107984]
[1764882363528,0.0555921,92581.0,92580.0,0.0654284]
[1764882363816,0.0555921,92581.0,92580.0,0.0378784]
[1764882364020,0.0555921,92581.0,92580.0,0.0107984]
[1764882364321,0.0107984,92580.0,92577.0,0.0107987]
[1764882364508,0.0380893,92573.0,92572.0,0.0107993]
[1764882364710,0.0663793,92573.0,92572.0,0.0107993]
[1764882364910,0.0107992,92573.0,92569.0,0.0107997]
[1764882365110,0.05558,92563.0,92562.0,0.0001621]
[1764882365319,0.05558,92563.0,92562.0,0.06938262]
[1764882365521,0.05558,92563.0,92562.0,0.0669626]
[1764882366316,0.07329,92576.0,92575.0,0.066799]
[1764882367821,0.07329,92576.0,92575.0,0.010799]
[1764882368211,0.07329,92576.0,92575.0,0.066799]
[1764882370309,0.05558,92576.0,92575.0,0.066799]
[1764882370510,0.08684456,92579.0,92578.0,0.0667986]
[1764882370726,0.0557421,92581.0,92580.0,0.056]
[1764882370920,0.0557421,92581.0,92580.0,0.05842002]
[1764882373224,0.05558,92579.0,92578.0,0.0107986]
[1764882373528,0.0663785,92579.0,92578.0,0.0107986]
[1764882374527,0.01771,92584.0,92578.0,0.0107986]
[1764882374528,0.01771,92616.0,92597.0,0.0667964]
[1764882374718,0.01771,92616.0,92584.0,0.01632]
[1764882374719,0.05584996,92606.0,92605.0,0.0107955]
[1764882375322,0.05584996,92606.0,92605.0,0.0667955]
[1764882375721,0.05584996,92606.0,92605.0,0.0107955]
[1764882376526,0.05584996,92606.0,92605.0,0.0382055]
[1764882377224,0.05584996,92606.0,92605.0,0.0107955]
[1764882377524,0.05584996,92606.0,92605.0,0.0667955]
[1764882378736,0.00026996,92606.0,92605.0,0.0667955]
[1764882378933,0.2812,92631.0,92605.0,0.0667955]
[1764882378934,0.01771,92673.0,92651.0,0.056]
[1764882379144,0.05558,92652.0,92651.0,0.02741]
[1764882379431,0.05558,92652.0,92651.0,0.06679]
[1764882379638,0.05558,92652.0,92651.0,0.056]
[1764882380038,0.05558,92644.0,92643.0,0.010791]
[1764882380235,0.05558,92644.0,92643.0,0.066791]
[1764882380829,0.05558,92643.0,92642.0,0.00016189]
[1764882381240,0.05558,92643.0,92642.0,0.00258191]
[1764882381438,0.05558,92643.0,92642.0,0.00016189]
[1764882381639,0.05558,92643.0,92642.0,0.00258191]
[1764882381830,0.05558,92643.0,92642.0,0.00016189]
[1764882382231,0.05558,92643.0,92642.0,0.00316189]
[1764882382827,0.02839681,92661.0,92651.0,0.01079]
[1764882383028,0.05558,92652.0,92651.0,0.06679]
[1764882383232,0.02829,92655.0,92654.0,0.02859]
[1764882383432,0.05558,92651.0,92647.0,0.0107905]
[1764882383633,0.0107893,92658.0,92650.0,0.08719012]
[1764882383831,0.0663693,92658.0,92657.0,0.056]
[1764882384236,0.05558,92651.0,92650.0,0.0107901]
[1764882384538,0.05558,92651.0,92650.0,0.0847701]
[1764882384838,0.02829,92656.0,92655.0,0.0667895]
[1764882385040,0.02829,92656.0,92650.0,0.01798]
[1764882385041,0.02839681,92661.0,92660.0,0.0847691]
[1764882385536,0.02839681,92661.0,92660.0,0.07398]
[1764882385738,0.05568681,92661.0,92660.0,0.07398]
[1764882387242,0.00010681,92661.0,92660.0,0.07398]
[1764882388036,0.05584973,92686.0,92685.0,0.056]
[1764882388236,0.00026973,92686.0,92685.0,0.056]
[1764882388442,0.05558,92671.0,92670.0,0.0847679]
[1764882388636,0.05558,92671.0,92670.0,0.0667879]
[1764882389036,0.01460973,92686.0,92661.0,0.00016189]
[1764882389338,0.01460973,92686.0,92683.0,0.0667864]
[1764882389339,0.05558,92684.0,92683.0,0.0667864]
[1764882389943,0.00026973,92686.0,92685.0,0.056]
[1764882390146,0.00026973,92686.0,92685.0,0.05842002]
[1764882390328,0.22412,92702.0,92685.0,0.05842002]
[1764882390329,0.0390722,92719.0,92718.0,0.056]
[1764882390533,0.0663622,92719.0,92718.0,0.02741]
[1764882390740,0.02829,92711.0,92710.0,0.0667832]
[1764882390937,0.05558,92711.0,92709.0,0.00016178]
[1764882391131,0.05558,92710.0,92709.0,0.0025818]
[1764882391338,0.05558,92710.0,92709.0,0.0585818]
[1764882391632,0.05558,92710.0,92709.0,0.05616178]
[1764882391838,0.05558,92710.0,92709.0,0.00016178]
[1764882392340,0.05558,92710.0,92709.0,0.0299918]
[1764882392546,0.2752928,92730.0,92725.0,0.056]
[1764882392741,0.2752928,92730.0,92715.0,0.0107826]
[1764882392931,0.02829,92710.0,92709.0,0.00016178]
[1764882393132,0.05558,92710.0,92709.0,0.0693651]
[1764882393340,0.2752928,92740.0,92725.0,0.056]
[1764882393644,0.0107802,92737.0,92725.0,0.056]
[1764882393831,0.2752928,92740.0,92725.0,0.056]
[1764882394036,0.0107801,92738.0,92725.0,0.056]
[1764882394236,0.2752928,92740.0,92725.0,0.056]
[1764882394436,0.0107804,92735.0,92725.0,0.056]
[1764882394740,0.2752928,92740.0,92725.0,0.056]
[1764882394936,0.36173653,92740.0,92725.0,0.056]
[1764882395248,0.36173653,92740.0,92725.0,0.057]
[1764882395544,0.37251633,92740.0,92725.0,0.057]
[1764882395746,0.0107801,92737.0,92725.0,0.057]
[1764882397040,0.2752928,92740.0,92725.0,0.057]
[1764882397246,0.0107803,92735.0,92725.0,0.057]
[1764882397435,0.05584961,92726.0,92725.0,0.0689215]
[1764882397637,0.05584961,92726.0,92725.0,0.06011]
[1764882398042,0.00026961,92726.0,92725.0,0.06011]
[1764882398345,0.02868961,92726.0,92725.0,0.06011]
[1764882398834,0.02868961,92726.0,92725.0,0.05911]
[1764882399032,0.05597961,92726.0,92725.0,0.05911]
[1764882399232,0.05597961,92726.0,92725.0,0.02938]
[1764882399448,0.05597961,92726.0,92725.0,0.06011]
[1764882400033,0.05597961,92726.0,92725.0,0.001]
[1764882400842,0.05571,92712.0,92711.0,0.02938]
[1764882401148,0.05571,92710.0,92709.0,0.05927178]
[1764882401345,0.05571,92710.0,92709.0,0.0616918]
[1764882401647,0.05571,92720.0,92709.0,0.0025818]
[1764882402239,0.05571,92720.0,92711.0,0.001]
[1764882402435,0.05571,92720.0,92719.0,0.08890222]
[1764882403444,0.00026961,92726.0,92725.0,0.0687515]
[1764882403648,0.00026961,92726.0,92725.0,0.07117152]
[1764882404647,0.02854961,92726.0,92725.0,0.07117152]
[1764882404843,0.05560961,92726.0,92725.0,0.07117152]
[1764882405038,0.05560961,92726.0,92725.0,0.06139002]
[1764882405647,0.05560961,92726.0,92725.0,0.001]
[1764882406645,0.05534,92710.0,92709.0,0.05813178]
[1764882406842,0.05534,92710.0,92709.0,0.0025818]
[1764882407042,0.05534,92710.0,92709.0,0.0319318]
[1764882407243,0.05534,92710.0,92709.0,0.0605518]
[1764882407651,0.05534,92710.0,92709.0,0.0615518]
[1764882408249,0.05534,92710.0,92709.0,0.0625518]
[1764882409852,0.05534,92710.0,92709.0,0.06013178]
[1764882410944,0.05534,92710.0,92709.0,0.05913178]
[1764882411454,0.05534,92710.0,92709.0,0.05813178]
[1764882411654,0.05534,92710.0,92709.0,0.05913178]
[1764882412754,0.07209,92710.0,92709.0,0.00116178]
[1764882413148,0.07209,92710.0,92709.0,0.00016178]
[1764882413350,0.05534,92710.0,92709.0,0.00216178]
[1764882413746,0.07209,92710.0,92709.0,0.00016178]
[1764882417856,0.05534,92687.0,92686.0,0.086736]
[1764882418652,0.27545423,92696.0,92688.0,0.0107858]
[1764882418846,0.05534,92689.0,92688.0,0.0687558]
[1764882419555,0.00016143,92696.0,92695.0,0.068755]
[1764882419760,0.00016143,92696.0,92695.0,0.07117502]
[1764882419951,0.05550143,92696.0,92695.0,0.07117502]
[1764882420762,0.05550143,92696.0,92695.0,0.002]
[1764882420955,0.05550143,92696.0,92664.0,0.05505845]
[1764882420956,0.05534,92678.0,92664.0,0.01667]
[1764882421161,0.05534,92678.0,92677.0,0.0605518]
[1764882421350,0.05534,92678.0,92677.0,0.0713389]
[1764882422154,0.05534,92678.0,92677.0,0.0723389]
[1764882422361,0.05534,92678.0,92677.0,0.0773389]
[1764882422861,0.05534,92678.0,92677.0,0.00616178]
[1764882424659,0.05534,92678.0,92677.0,0.06397178]
[1764882425059,0.05925,92684.0,92683.0,0.05781]
[1764882425963,0.070037,92678.0,92677.0,0.00616178]
[1764882426169,0.070037,92678.0,92677.0,0.00516178]
[1764882426463,0.070037,92678.0,92677.0,0.00016178]
[1764882426871,0.070037,92678.0,92677.0,0.0025818]
[1764882427058,0.070037,92678.0,92677.0,0.00016178]
[1764882427361,0.05925,92678.0,92677.0,0.0603918]
[1764882427564,0.05925,92678.0,92677.0,0.0613918]
[1764882428272,0.05925,92678.0,92677.0,0.03049178]
[1764882428663,0.05925,92678.0,92677.0,0.06397178]
[1764882428867,0.05925,92678.0,92677.0,0.07475888]
[1764882429368,0.21849336,92700.0,92695.0,0.05781]
[1764882432569,0.05810238,92712.0,92710.0,0.04521]
[1764882432768,0.02986,92718.0,92717.0,0.05781]
[1764882434564,0.05925,92718.0,92717.0,0.05781]
[1764882435068,0.21849336,92720.0,92710.0,0.01673]
[1764882435069,0.21849336,92720.0,92719.0,0.05781]
[1764882435275,0.07030111,92726.0,92725.0,0.05781]
[1764882435473,0.05951961,92726.0,92725.0,0.05781]
[1764882435670,0.05951961,92726.0,92725.0,0.02933]
[1764882435878,0.05925,92722.0,92721.0,0.0685919]
[1764882436173,0.14592464,92726.0,92725.0,0.05781]
[1764882436371,0.05951961,92726.0,92725.0,0.05781]
[1764882436570,0.00226961,92726.0,92725.0,0.05781]
[1764882436962,0.00026961,92726.0,92725.0,0.05781]
[1764882438063,0.3704582,92753.0,92725.0,0.05781]
[1764882438064,0.00682837,92754.0,92743.0,0.0685894]
[1764882438267,0.05810238,92757.0,92743.0,0.0685894]
[1764882438268,0.0002695,92766.0,92765.0,0.05781]
[1764882438875,0.0595195,92766.0,92765.0,0.05781]
[1764882439271,0.0002695,92766.0,92765.0,0.05781]
[1764882439977,0.21849336,92780.0,92779.0,0.05781]
[1764882440180,0.0700246,92785.0,92784.0,0.02933]
[1764882440363,0.05925,92780.0,92779.0,0.05781]
[1764882441270,0.02986,92772.0,92771.0,0.0685861]
[1764882441671,0.02986,92772.0,92771.0,0.05781]
[1764882441672,0.05925,92772.0,92771.0,0.05781]
[1764882443181,0.27774336,92781.0,92780.0,0.05781]
[1764882443365,0.0107751,92780.0,92771.0,0.0107761]
[1764882443575,0.05925,92751.0,92750.0,0.05781]
[1764882443769,0.21849336,92760.0,92753.0,0.0107782]
[1764882443976,0.02986,92754.0,92753.0,0.0685882]
[1764882444176,0.05925,92754.0,92753.0,0.0685882]
[1764882445370,0.02986,92754.0,92753.0,0.0685882]
[1764882445581,0.05925,92754.0,92753.0,0.0685882]
[1764882445977,0.05925,92754.0,92753.0,0.05781]
[1764882446478,0.21849336,92760.0,92759.0,0.05781]
[1764882446668,0.03002138,92763.0,92762.0,0.05781]
[1764882446874,0.05941138,92763.0,92762.0,0.05781]
[1764882447568,0.03002138,92763.0,92762.0,0.05781]
[1764882447771,0.00016138,92763.0,92762.0,0.05781]
[1764882449876,0.01717,92796.0,92789.0,0.05781]
[1764882449877,0.29491336,92790.0,92789.0,0.05781]
[1764882450083,0.07642,92790.0,92789.0,0.02933]
[1764882450981,0.010774,92790.0,92785.0,0.05781]
[1764882451177,0.05925,92781.0,92780.0,0.06874669]
[1764882451373,0.05925,92781.0,92780.0,0.02949169]
[1764882451573,0.05925,92781.0,92780.0,0.00016169]
[1764882451976,0.0107749,92782.0,92763.0,0.010777]
[1764882452177,0.0107749,92782.0,92746.0,0.068589]
[1764882452178,0.05925,92747.0,92746.0,0.068589]
[1764882452382,0.02986,92747.0,92746.0,0.068589]
[1764882452578,0.21849336,92753.0,92752.0,0.05781]
[1764882452579,0.24835336,92753.0,92752.0,0.05781]
[1764882452785,0.05925,92753.0,92752.0,0.05781]
[1764882453388,0.02986,92751.0,92750.0,0.05781]
[1764882453685,0.05925,92744.0,92743.0,0.00016169]
[1764882457085,0.02716,92727.0,92726.0,0.0672113]
[1764882457277,0.05699,92727.0,92726.0,0.0672113]
[1764882458080,0.02716,92727.0,92726.0,0.0672113]
[1764882458277,0.02716,92727.0,92726.0,0.0682113]
[1764882458879,0.02716,92727.0,92726.0,0.0742113]
[1764882460482,0.05699,92727.0,92726.0,0.06343]
[1764882460682,0.05699,92727.0,92726.0,0.007]
[1764882461787,0.05699,92727.0,92717.0,0.00016169]
[1764882461788,0.05797,92718.0,92717.0,0.00016169]
[1764882462983,0.01684,92710.0,92705.0,0.0107848]
[1764882463174,0.01684,92710.0,92686.0,0.01789]
[1764882463380,0.07596,92700.0,92691.0,0.0107865]
[1764882463687,0.07596,92700.0,92685.0,0.0107872]
[1764882463889,0.07596,92700.0,92690.0,0.00016178]
[1764882463890,0.13406238,92700.0,92690.0,0.00016178]
[1764882464087,0.07596,92700.0,92690.0,0.00016178]
[1764882464383,0.05797,92691.0,92670.0,0.0175589]
[1764882464590,0.05797,92682.0,92681.0,0.0107877]
[1764882464985,0.05797,92682.0,92681.0,0.0378277]
[1764882465193,0.05810774,92682.0,92681.0,0.0656177]
[1764882467083,0.00013774,92682.0,92681.0,0.0656177]
[1764882467292,0.00213774,92682.0,92681.0,0.0656177]
[1764882468192,0.03027774,92682.0,92681.0,0.0656177]
[1764882468691,0.00213774,92682.0,92681.0,0.0656177]
[1764882468894,0.03160774,92682.0,92681.0,0.0656177]
[1764882469086,0.05986774,92682.0,92681.0,0.0656177]
[1764882469690,0.09710068,92735.0,92681.0,0.0656177]
[1764882469691,0.05773,92719.0,92718.0,0.05615]
[1764882470086,0.07544,92719.0,92718.0,0.02835]
[1764882470287,0.05773,92718.0,92717.0,0.0669334]
[1764882470788,0.05773,92718.0,92717.0,0.0107834]
[1764882470996,0.02826,92714.0,92713.0,0.0107839]
[1764882471195,0.05773,92714.0,92713.0,0.0107839]
[1764882472590,0.05873,92714.0,92713.0,0.0107839]
[1764882474197,0.06173,92714.0,92713.0,0.0107839]
[1764882474992,0.05773,92709.0,92708.0,0.01094628]
[1764882475191,0.05773,92709.0,92708.0,0.00016178]
[1764882475390,0.05773,92709.0,92687.0,0.010787]
[1764882475391,0.05773,92688.0,92687.0,0.039137]
[1764882475793,0.05773,92688.0,92687.0,0.0107869]
[1764882476409,0.14595638,92688.0,92687.0,0.0107869]
[1764882477610,0.14595638,92688.0,92687.0,0.0391369]
[1764882478004,0.14595638,92688.0,92687.0,0.0421369]
[1764882478510,0.14695638,92688.0,92687.0,0.0669369]
[1764882478712,0.08922638,92688.0,92679.0,0.0107879]
[1764882478907,0.08922638,92688.0,92678.0,0.00016178]
[1764882478908,0.05773,92679.0,92678.0,0.00016178]
[1764882479609,0.11869638,92688.0,92687.0,0.066937]
[1764882479807,0.11869638,92688.0,92687.0,0.06935702]
[1764882480014,0.14595638,92688.0,92687.0,0.06935702]
[1764882480209,0.14695638,92688.0,92687.0,0.06935702]
[1764882480714,0.14595638,92688.0,92687.0,0.06935702]
[1764882481009,0.14795638,92688.0,92687.0,0.06935702]
[1764882481405,0.14895638,92688.0,92687.0,0.06935702]
[1764882481600,0.14995638,92688.0,92687.0,0.06935702]
[1764882481805,0.01771,92686.0,92678.0,0.00016178]
[1764882482008,0.05773,92679.0,92678.0,0.00016178]
[1764882484318,0.05873,92679.0,92678.0,0.00016178]
[1764882484614,0.0107885,92674.0,92673.0,0.0107886]
[1764882484817,0.05671,92671.0,92670.0,0.0107889]
[1764882487114,0.05671,92671.0,92670.0,0.0407589]
[1764882487313,0.05671,92671.0,92670.0,0.0694789]
[1764882490416,0.02924,92671.0,92670.0,0.0694789]
[1764882490718,0.05671,92671.0,92670.0,0.0694789]
[1764882493926,0.05671,92671.0,92670.0,0.0117889]
[1764882494125,0.05671,92671.0,92670.0,0.001]
[1764882494624,0.0674999,92662.0,92661.0,0.00016187]
[1764882494928,0.0674999,92662.0,92659.0,0.0107902]
[1764882494929,0.05671,92660.0,92659.0,0.0107902]
[1764882496228,0.14379796,92660.0,92659.0,0.0107902]
[1764882496418,0.05671,92660.0,92659.0,0.0107902]
[1764882497025,0.05671,92660.0,92659.0,0.0117902]
[1764882497923,0.14332329,92660.0,92659.0,0.001]
[1764882498132,0.0675012,92651.0,92650.0,0.00010803]
[1764882499622,0.0675012,92651.0,92650.0,0.00210803]
[1764882500442,0.0675012,92651.0,92650.0,0.00310803]
[1764882501236,0.05671,92651.0,92650.0,0.00310803]
[1764882504518,0.07365,92628.0,92627.0,0.02906146]
[1764882504829,0.07365,92628.0,92627.0,0.03148148]
[1764882505030,0.07365,92628.0,92627.0,0.06020148]
[1764882505936,0.07565,92628.0,92627.0,0.00251148]
[1764882506432,0.07565,92628.0,92627.0,9.146e-05]
[1764882506632,0.07565,92628.0,92627.0,0.03148148]
[1764882507630,0.07565,92628.0,92627.0,0.06020148]
[1764882509331,0.07565,92628.0,92627.0,0.03148148]
[1764882509541,0.07565,92628.0,92627.0,9.146e-05]
[1764882510438,0.07565,92628.0,92627.0,0.00251148]
[1764882510630,0.07565,92628.0,92627.0,9.146e-05]
[1764882511231,0.07565,92628.0,92627.0,0.05778146]
[1764882511434,0.05871,92628.0,92627.0,0.05778146]
[1764882513335,0.002,92628.0,92627.0,0.05778146]
[1764882513841,0.002,92628.0,92627.0,9.146e-05]
[1764882513842,0.05871,92628.0,92627.0,9.146e-05]
[1764882515440,0.05671,92628.0,92627.0,9.146e-05]
[1764882515635,0.05835,92607.0,92606.0,0.06832636]
[1764882515937,0.05835,92607.0,92606.0,0.07074638]
[1764882516740,0.05844146,92607.0,92606.0,0.07074638]
[1764882517242,0.05844146,92607.0,92606.0,0.07374638]
[1764882518742,9.146e-05,92607.0,92606.0,0.07374638]
[1764882523433,0.05804146,92607.0,92606.0,0.07374638]
[1764882525643,9.146e-05,92607.0,92606.0,0.07374638]
[1764882525837,0.00016198,92616.0,92615.0,0.0671954]
[1764882526036,0.00016198,92616.0,92615.0,0.06961542]
[1764882526336,0.0107927,92639.0,92638.0,0.0107927]
[1764882526337,0.0690127,92639.0,92638.0,0.0107927]
[1764882526732,0.05822,92639.0,92638.0,0.0107927]
[1764882526935,0.05822,92646.0,92645.0,0.0671919]
[1764882527747,0.05822,92646.0,92645.0,0.0385219]
[1764882527948,0.05822,92646.0,92645.0,0.0671919]
[1764882529146,0.06622,92646.0,92645.0,0.0671919]
[1764882529553,0.001,92646.0,92645.0,0.0671919]
[1764882529742,0.004,92646.0,92645.0,0.0671919]
[1764882529935,0.003,92646.0,92645.0,0.0671919]
[1764882531241,0.05838198,92655.0,92654.0,0.0671908]
[1764882531440,0.05838198,92655.0,92654.0,0.06961082]
[1764882532549,0.06138198,92655.0,92654.0,0.06961082]
[1764882536650,0.00316198,92655.0,92654.0,0.06961082]
[1764882536854,0.06138198,92655.0,92654.0,0.06961082]
[1764882537945,0.05838198,92655.0,92654.0,0.06961082]
[1764882538141,0.06038198,92655.0,92654.0,0.06961082]
[1764882538540,0.05838198,92655.0,92654.0,0.06961082]
[1764882538745,0.05938198,92655.0,92654.0,0.06961082]
[1764882539155,0.05938198,92655.0,92654.0,0.0671908]
[1764882539548,0.06038198,92655.0,92654.0,0.0671908]
[1764882540446,0.0107915,92650.0,92649.0,0.0107913]
[1764882540653,0.0272612,92652.0,92649.0,0.0107914]
[1764882540852,0.05822,92650.0,92649.0,0.0107914]
[1764882541256,0.05822,92650.0,92649.0,0.0671914]
[1764882541562,0.05838198,92655.0,92654.0,0.0671908]
[1764882541749,0.05838198,92655.0,92654.0,0.06961082]
[1764882542855,0.06138198,92655.0,92654.0,0.06961082]
[1764882544049,0.00316198,92655.0,92654.0,0.06961082]
[1764882544247,0.00136033,92655.0,92654.0,0.06961082]
[1764882544458,0.05627,92678.0,92677.0,0.0691682]
[1764882545457,0.14363833,92685.0,92684.0,0.0691673]
[1764882545658,0.14363833,92685.0,92684.0,0.0107873]
[1764882545861,0.05627,92685.0,92684.0,0.0691673]
[1764882546759,0.05727,92685.0,92684.0,0.0691673]
[1764882548364,0.06027,92685.0,92684.0,0.0691673]
[1764882548762,0.05927,92685.0,92684.0,0.0691673]
[1764882548955,0.05827,92685.0,92684.0,0.0691673]
[1764882549557,0.05827,92685.0,92684.0,0.0107873]
[1764882549757,0.05827,92685.0,92678.0,0.010788]
[1764882549758,0.0107879,92680.0,92678.0,0.010788]
[1764882549955,0.05627,92679.0,92678.0,0.010788]
[1764882550559,0.01702,92680.0,92668.0,0.00016187]
[1764882550759,0.01702,92680.0,92668.0,0.07175109]
[1764882550760,0.05627,92669.0,92668.0,0.07175109]
[1764882551162,0.27471877,92678.0,92677.0,0.0691682]
[1764882551351,0.04493187,92687.0,92686.0,0.02867]
[1764882551556,0.07290187,92687.0,92686.0,0.05838]
[1764882551758,0.07290187,92687.0,92686.0,0.0691671]
[1764882552061,0.05643187,92687.0,92686.0,0.0691671]